bitfinex-derivatives/quotes_BTCF0:USTF0_20251208
["timestamp","ask_amount","ask_price","bid_price","bid_amount"]
[1765208759303,0.09308,89797.0,89796.0,0.002]
[1765208759517,0.09408,89797.0,89796.0,0.002]
[1765208759912,0.001,89797.0,89796.0,0.1012665]
[1765208760113,0.004,89797.0,89796.0,0.1022665]
[1765208760315,0.004,89797.0,89796.0,0.1002665]
[1765208760716,0.00016706,89802.0,89796.0,0.1002665]
[1765208761020,0.05792367,89841.0,89827.0,0.0439]
[1765208761207,0.02694041,89840.0,89830.0,0.0111322]
[1765208761411,0.2114865,89840.0,89820.0,0.02664]
[1765208761612,0.2226177,89840.0,89828.0,0.0111325]
[1765208761915,0.0111315,89837.0,89825.0,0.0111329]
[1765208762326,0.0111315,89837.0,89827.0,0.001]
[1765208762617,0.08629,89828.0,89827.0,0.001]
[1765208762820,0.00016608,89839.0,89828.0,0.001]
[1765208763011,0.00016608,89839.0,89828.0,0.0121325]
[1765208763319,0.00016608,89839.0,89832.0,0.0111319]
[1765208763710,0.21190027,89840.0,89828.0,0.001]
[1765208764012,0.21290027,89840.0,89832.0,0.0111321]
[1765208764512,0.001,89837.0,89832.0,0.0111321]
[1765208764822,0.001,89837.0,89832.0,0.002]
[1765208765123,0.001,89839.0,89832.0,0.002]
[1765208765512,0.21005927,89840.0,89832.0,0.003]
[1765208765713,0.001,89837.0,89836.0,0.08813]
[1765208766119,0.001,89840.0,89839.0,0.08813]
[1765208766622,0.02469,89865.0,89855.0,0.0111291]
[1765208766825,0.08629,89852.0,89851.0,0.00016696]
[1765208767416,0.08629,89852.0,89851.0,0.01187436]
[1765208767612,0.2114865,89861.0,89851.0,0.01187436]
[1765208767613,0.2114865,89861.0,89854.0,0.0111292]
[1765208767829,0.2114865,89870.0,89851.0,0.01191236]
[1765208768020,0.008,89865.0,89863.0,0.0111281]
[1765208768331,0.008,89865.0,89864.0,0.08813]
[1765208770130,0.3183,89889.0,89865.0,0.02664]
[1765208770330,0.00111248,89890.0,89884.0,0.0111255]
[1765208770526,0.00111248,89890.0,89889.0,0.0439]
[1765208770729,0.00111248,89890.0,89878.0,0.00016696]
[1765208770730,0.08629,89879.0,89878.0,0.00016696]
[1765208770918,0.2114865,89888.0,89878.0,0.08829696]
[1765208771425,0.21259898,89890.0,89878.0,0.00016696]
[1765208771625,0.08629,89879.0,89878.0,0.00016696]
[1765208771826,0.08629,89879.0,89830.0,0.0998084]
[1765208771827,0.02469,89865.0,89852.0,1.5]
[1765208772027,0.02469,89865.0,89836.0,0.1086]
[1765208772028,0.08568,89853.0,89836.0,0.1086]
[1765208772216,0.2114865,89845.0,89836.0,0.05425749]
[1765208772419,0.2114865,89860.0,89847.0,0.0111302]
[1765208772628,0.2114865,89860.0,89839.0,0.0111311]
[1765208772830,0.02469,89865.0,89835.0,0.02565]
[1765208772831,0.2114865,89850.0,89847.0,0.0111301]
[1765208773128,0.08473,89842.0,89841.0,0.00016696]
[1765208774330,0.001,89842.0,89841.0,0.00316696]
[1765208774531,0.002,89842.0,89841.0,0.00916696]
[1765208774933,0.001,89842.0,89841.0,0.00316696]
[1765208775132,0.08573,89842.0,89841.0,0.00116696]
[1765208775635,0.02626,89840.0,89791.0,0.09880841]
[1765208775826,0.2114865,89820.0,89806.0,0.0111352]
[1765208776133,0.2114865,89820.0,89793.0,0.0111368]
[1765208776330,0.2114865,89820.0,89781.0,0.523934]
[1765208776331,0.2114865,89803.0,89781.0,0.523934]
[1765208776738,0.00016696,89801.0,89783.0,0.00016696]
[1765208776933,0.00016696,89801.0,89789.0,0.0111373]
[1765208777234,0.00016696,89801.0,89793.0,0.004]
[1765208777624,0.00016696,89801.0,89789.0,0.0111373]
[1765208777934,0.00016696,89801.0,89783.0,0.00016696]
[1765208777935,0.0111366,89796.0,89783.0,0.00016696]
[1765208778132,0.2114865,89793.0,89784.0,0.011138]
[1765208778337,0.2114865,89800.0,89793.0,0.003]
[1765208778830,0.04148,89794.0,89793.0,0.003]
[1765208779230,0.08473,89794.0,89793.0,0.003]
[1765208779534,0.00216696,89801.0,89793.0,0.0141368]
[1765208779734,0.001,89796.0,89795.0,0.08499]
[1765208779938,0.001,89796.0,89789.0,0.0141373]
[1765208780435,0.001,89794.0,89793.0,0.002]
[1765208780632,0.002,89794.0,89793.0,0.08799]
[1765208780832,0.001,89794.0,89793.0,0.08599]
[1765208781229,0.002,89796.0,89795.0,0.08499]
[1765208781826,0.04348,89796.0,89790.0,0.0111372]
[1765208782029,0.002,89796.0,89793.0,0.0111368]
[1765208782537,0.001,89794.0,89793.0,0.0131368]
[1765208782837,0.001,89794.0,89793.0,0.0991268]
[1765208782838,0.002,89794.0,89793.0,0.0991268]
[1765208783537,0.00016696,89801.0,89800.0,0.096126]
[1765208783734,0.2114865,89820.0,89793.0,0.004]
[1765208783924,0.2226201,89820.0,89793.0,0.004]
[1765208784130,0.2114865,89810.0,89793.0,0.004]
[1765208784329,0.2114865,89810.0,89809.0,0.04287]
[1765208784530,0.2114865,89819.0,89809.0,0.04287]
[1765208785433,0.04148,89810.0,89805.0,0.00016706]
[1765208785740,0.04148,89810.0,89806.0,0.0111353]
[1765208785932,0.04248,89810.0,89806.0,0.0111353]
[1765208786139,0.08473,89806.0,89805.0,0.00016706]
[1765208786525,0.08473,89806.0,89805.0,0.00416706]
[1765208786738,0.08473,89806.0,89805.0,0.00616706]
[1765208787235,0.001,89806.0,89781.0,0.01140712]
[1765208787426,0.04148,89788.0,89787.0,0.0111376]
[1765208787739,0.08473,89788.0,89784.0,0.011138]
[1765208787940,0.04148,89785.0,89781.0,0.01140712]
[1765208788136,0.04148,89785.0,89782.0,0.0111383]
[1765208788928,0.04148,89783.0,89781.0,0.01140712]
[1765208789139,0.08473,89782.0,89781.0,0.01140712]
[1765208789635,0.08473,89782.0,89781.0,9.4e-05]
[1765208790437,0.04148,89776.0,89775.0,0.01130616]
[1765208790630,0.002,89782.0,89781.0,0.0971284]
[1765208790829,0.001,89782.0,89781.0,0.0971284]
[1765208791036,0.002,89782.0,89781.0,0.0981284]
[1765208791738,0.002094,89782.0,89781.0,0.0981284]
[1765208792128,0.003094,89782.0,89781.0,0.0971284]
[1765208792533,0.003094,89782.0,89781.0,0.0550084]
[1765208792835,9.4e-05,89782.0,89781.0,0.0540084]
[1765208793139,0.042574,89782.0,89781.0,0.0121384]
[1765208793532,0.043574,89782.0,89781.0,0.0141384]
[1765208793740,0.086824,89782.0,89781.0,0.003]
[1765208793931,0.085824,89782.0,89781.0,0.001]
[1765208794126,0.086824,89782.0,89781.0,0.002]
[1765208794533,0.086824,89782.0,89781.0,0.001]
[1765208795041,0.08473,89776.0,89775.0,0.00016706]
[1765208795638,0.095869,89776.0,89775.0,0.00016706]
[1765208796137,0.08473,89759.0,89745.0,0.08694009]
[1765208796340,0.04148,89754.0,89753.0,0.0111418]
[1765208796942,0.08473,89754.0,89753.0,0.0111418]
[1765208797444,0.08473,89754.0,89753.0,0.02235457]
[1765208797743,0.08473,89746.0,89745.0,0.00016706]
[1765208797930,0.08473,89746.0,89745.0,0.01130996]
[1765208799136,0.08973,89746.0,89745.0,0.0238083]
[1765208799335,0.005,89746.0,89745.0,0.1087983]
[1765208799532,9.4e-05,89758.0,89745.0,0.1087983]
[1765208799533,9.4e-05,89758.0,89757.0,0.0111414]
[1765208799738,9.4e-05,89758.0,89757.0,0.0961314]
[1765208800728,0.0111376,89788.0,89761.0,0.0961309]
[1765208801537,0.02737372,89790.0,89778.0,0.0111387]
[1765208801728,0.02737372,89790.0,89764.0,0.0111404]
[1765208801729,0.08473,89782.0,89764.0,0.0111404]
[1765208801934,0.08473,89782.0,89765.0,0.0111403]
[1765208802138,0.08473,89782.0,89781.0,0.0111384]
[1765208802833,0.08573,89782.0,89781.0,0.0111384]
[1765208803032,0.08673,89782.0,89781.0,0.0111384]
[1765208803439,0.08573,89782.0,89781.0,0.0111384]
[1765208803646,0.08573,89782.0,89781.0,0.0121384]
[1765208803647,0.08673,89782.0,89781.0,0.0121384]
[1765208804236,0.08573,89782.0,89781.0,0.0121384]
[1765208804446,0.08673,89782.0,89781.0,0.0131384]
[1765208804845,0.11141,89782.0,89781.0,0.0131384]
[1765208805045,0.11141,89782.0,89781.0,0.002]
[1765208805550,0.04348,89782.0,89781.0,0.04177]
[1765208805847,0.1074,89782.0,89781.0,0.002]
[1765208806544,0.002,89782.0,89781.0,0.08097]
[1765208807844,0.00128078,89790.0,89781.0,0.08097]
[1765208807845,0.00128078,89790.0,89789.0,0.0901074]
[1765208808346,0.31031022,89810.0,89789.0,0.07897]
[1765208808646,0.33657022,89820.0,89809.0,0.0111348]
[1765208808945,0.011132,89833.0,89820.0,0.0111335]
[1765208809240,0.011132,89833.0,89810.0,0.00977]
[1765208809438,0.00016706,89830.0,89813.0,0.00016706]
[1765208809639,0.0111328,89826.0,89813.0,0.00016706]
[1765208809837,0.0761,89814.0,89813.0,0.00016706]
[1765208810343,0.10078,89810.0,89809.0,0.002]
[1765208811248,0.02468,89810.0,89790.0,0.0111372]
[1765208811545,0.02468,89810.0,89746.0,1.02912562]
[1765208811546,0.0761,89797.0,89796.0,0.01131169]
[1765208811733,0.087237,89792.0,89791.0,0.00016706]
[1765208812539,0.03686,89776.0,89775.0,0.0111391]
[1765208813448,0.03686,89776.0,89767.0,0.00016706]
[1765208813641,0.10078,89768.0,89767.0,0.00016706]
[1765208814848,0.10178,89768.0,89767.0,0.00316706]
[1765208815150,0.10278,89768.0,89767.0,0.00416706]
[1765208815342,0.10478,89768.0,89767.0,0.00216706]
[1765208815743,0.0801,89768.0,89767.0,0.01330716]
[1765208815944,0.0801,89768.0,89767.0,0.09227716]
[1765208815945,0.004,89768.0,89767.0,0.09227716]
[1765208816543,0.003,89768.0,89767.0,0.09227716]
[1765208817050,0.003,89768.0,89767.0,0.08113706]
[1765208817547,0.10378,89768.0,89767.0,0.00216706]
[1765208818348,0.11492,89768.0,89767.0,0.00216706]
[1765208818649,0.10378,89768.0,89767.0,0.00216706]
[1765208819244,0.0791,89768.0,89767.0,0.00216706]
[1765208819637,0.0791,89768.0,89767.0,0.04193706]
[1765208819949,0.03861358,89768.0,89767.0,0.07633706]
[1765208820147,0.03861358,89768.0,89767.0,0.08747716]
[1765208820350,0.07665358,89768.0,89767.0,0.00216706]
[1765208820848,0.07665358,89768.0,89767.0,0.07347706]
[1765208820849,0.00175358,89768.0,89767.0,0.07347706]
[1765208821051,0.0111358,89802.0,89783.0,0.0824481]
[1765208821256,0.03804,89772.0,89771.0,0.0111395]
[1765208821442,0.03804,89772.0,89767.0,0.00216706]
[1765208821443,0.0762,89772.0,89767.0,0.00216706]
[1765208821745,0.31031022,89790.0,89767.0,0.00216706]
[1765208821941,0.0111362,89799.0,89783.0,0.07131]
[1765208822147,0.31031022,89800.0,89783.0,0.07131]
[1765208822651,0.00716706,89784.0,89783.0,0.07131]
[1765208823443,0.00116706,89784.0,89783.0,0.07331]
[1765208823747,0.02468,89824.0,89789.0,0.0111374]
[1765208823952,0.02674457,89823.0,89818.0,0.0111338]
[1765208824153,0.31031022,89830.0,89816.0,0.0111339]
[1765208824458,0.31031022,89830.0,89814.0,0.0111342]
[1765208824747,0.00016706,89831.0,89813.0,0.00016706]
[1765208825053,0.00016706,89831.0,89830.0,0.07131]
[1765208825843,0.07636706,89831.0,89821.0,0.0111334]
[1765208826154,0.03832706,89831.0,89828.0,0.0111324]
[1765208826452,0.07736706,89831.0,89830.0,0.002]
[1765208827150,0.07593273,89831.0,89830.0,0.002]
[1765208827349,0.0762,89814.0,89813.0,0.01143622]
[1765208827543,0.002,89831.0,89813.0,0.01143622]
[1765208827951,0.001,89831.0,89830.0,0.07331]
[1765208828453,0.001,89831.0,89830.0,0.07131]
[1765208828654,0.002,89831.0,89830.0,0.07131]
[1765208828956,0.001,89831.0,89830.0,0.07231]
[1765208829345,0.00016706,89839.0,89830.0,0.07231]
[1765208829950,0.03816,89831.0,89830.0,0.001]
[1765208830155,0.0772,89831.0,89830.0,0.002]
[1765208830547,0.0772,89831.0,89830.0,0.003]
[1765208831142,0.0772,89831.0,89830.0,0.004]
[1765208831841,0.0762,89831.0,89830.0,0.002]
[1765208832043,0.0762,89831.0,89830.0,0.004]
[1765208832645,0.0772,89831.0,89830.0,0.004]
[1765208832852,0.07316,89815.0,89814.0,0.0111342]
[1765208833448,0.07316,89815.0,89813.0,0.01143622]
[1765208833449,0.07112,89814.0,89813.0,0.00016706]
[1765208833646,0.07112,89814.0,89813.0,0.01147928]
[1765208834250,0.03612,89814.0,89813.0,0.08282928]
[1765208834449,0.003,89831.0,89813.0,0.01147928]
[1765208834754,0.001,89831.0,89813.0,0.01347928]
[1765208835157,0.07112,89815.0,89814.0,0.001]
[1765208835956,0.07112,89814.0,89813.0,0.00316706]
[1765208836460,0.0822543,89814.0,89813.0,0.00316706]
[1765208836656,0.07112,89814.0,89813.0,0.00216706]
[1765208837555,0.07412,89814.0,89813.0,0.00116706]
[1765208838260,0.07512,89814.0,89813.0,0.00216706]
[1765208838860,0.07512,89814.0,89793.0,0.01131299]
[1765208838861,0.0822569,89794.0,89793.0,0.01131299]
[1765208839157,0.31031022,89800.0,89765.0,0.00111403]
[1765208839467,0.0111375,89789.0,89778.0,0.07135]
[1765208839660,0.01985,89791.0,89772.0,0.0903709]
[1765208839960,0.0111359,89802.0,89793.0,0.002]
[1765208840159,0.001,89794.0,89793.0,0.07335]
[1765208840358,0.002,89794.0,89793.0,0.07635]
[1765208840558,0.0842568,89794.0,89793.0,0.005]
[1765208840858,0.07112,89774.0,89773.0,0.00016706]
[1765208841052,0.07112,89774.0,89773.0,0.03696706]
[1765208841258,0.07112,89774.0,89773.0,0.00016706]
[1765208842160,0.07212,89774.0,89773.0,0.00116706]
[1765208842847,0.07212,89774.0,89773.0,0.00016706]
[1765208843359,0.07312,89774.0,89773.0,0.00016706]
[1765208843760,0.07212,89774.0,89773.0,0.00116706]
[1765208843966,0.00016706,89782.0,89781.0,0.07135]
[1765208844159,0.02184,89838.0,89782.0,0.01382]
[1765208844160,0.02184,89810.0,89782.0,0.01382]
[1765208844466,0.15926377,89808.0,89807.0,0.0111352]
[1765208844660,0.03612,89805.0,89804.0,0.0111355]
[1765208844859,0.07112,89811.0,89810.0,0.0111347]
[1765208845454,0.07112,89811.0,89802.0,0.00016706]
[1765208845455,0.07112,89808.0,89807.0,0.0111351]
[1765208846360,0.07112,89814.0,89813.0,0.0111343]
[1765208847362,0.07112,89810.0,89809.0,0.0111348]
[1765208848661,0.07912,89814.0,89813.0,0.0111344]
[1765208849166,0.07712,89814.0,89813.0,0.0479344]
[1765208849459,0.07112,89814.0,89813.0,0.0111344]
[1765208849660,0.09296,89810.0,89809.0,0.0121349]
[1765208850060,0.00016706,89819.0,89818.0,0.07135]
[1765208850370,0.08947245,89865.0,89832.0,0.047932]
[1765208850371,0.07112,89833.0,89832.0,0.047932]
[1765208850666,0.01113,89849.0,89836.0,0.0111315]
[1765208850864,0.0111296,89853.0,89836.0,0.0111315]
[1765208851066,0.00111279,89865.0,89839.0,0.0368]
[1765208851364,0.0111283,89863.0,89839.0,0.07135]
[1765208851960,0.0111287,89860.0,89839.0,0.07135]
[1765208852161,0.0021131,89840.0,89839.0,0.07135]
[1765208852567,0.0732331,89840.0,89839.0,0.01140043]
[1765208852768,0.0732331,89840.0,89838.0,0.0111312]
[1765208852964,0.0131131,89840.0,89839.0,0.07135]
[1765208853267,0.0492331,89840.0,89839.0,0.07135]
[1765208853465,0.0051131,89840.0,89839.0,0.001]
[1765208853666,0.0762331,89840.0,89839.0,0.001]
[1765208855769,0.07112,89832.0,89831.0,0.00016706]
[1765208856268,0.02184,89830.0,89807.0,0.0111351]
[1765208856570,0.07112,89812.0,89796.0,0.02122]
[1765208856773,0.07112,89812.0,89796.0,0.03235605]
[1765208856967,0.07112,89812.0,89806.0,0.0111352]
[1765208857658,0.07112,89803.0,89802.0,0.0111357]
[1765208857867,0.00016706,89818.0,89800.0,0.00016706]
[1765208857868,0.07112,89810.0,89809.0,0.0111349]
[1765208858362,0.07112,89810.0,89803.0,0.0111356]
[1765208858567,0.07112,89804.0,89803.0,0.0111356]
[1765208858954,0.07112,89804.0,89803.0,0.0479356]
[1765208859161,0.002,89812.0,89809.0,0.0111349]
[1765208859663,0.001,89812.0,89809.0,0.0111349]
[1765208860165,0.03612,89810.0,89809.0,0.0111349]
[1765208860364,0.03612,89810.0,89809.0,0.0121349]
[1765208860558,0.07112,89810.0,89809.0,0.0121349]
[1765208860960,0.07112,89810.0,89809.0,0.0489349]
[1765208861166,0.003,89812.0,89811.0,0.07135]
[1765208861557,0.07112,89810.0,89809.0,0.002]
[1765208861757,0.07112,89801.0,89800.0,0.00016706]
[1765208861963,0.07112,89785.0,89784.0,0.0111379]
[1765208862262,0.02173,89778.0,89766.0,0.08795334]
[1765208862459,0.02173,89778.0,89772.0,0.0111395]
[1765208862658,0.02173,89778.0,89766.0,0.08795334]
[1765208862659,0.03319,89777.0,89766.0,0.08795334]
[1765208862872,0.03319,89766.0,89765.0,0.02342391]
[1765208863261,0.02173,89778.0,89765.0,0.05508391]
[1765208863470,0.02173,89778.0,89766.0,0.0111402]
[1765208863771,0.06989,89773.0,89772.0,0.001]
[1765208864173,0.001,89778.0,89777.0,0.03166]
[1765208864362,0.001,89778.0,89777.0,0.0763189]
[1765208864563,0.002,89778.0,89777.0,0.0763189]
[1765208865667,0.011134,89817.0,89799.0,0.0111361]
[1765208865870,0.02173,89824.0,89782.0,0.00565]
[1765208865871,0.06989,89809.0,89808.0,0.011135]
[1765208866063,0.03319,89809.0,89808.0,0.042795]
[1765208866256,0.21125924,89820.0,89815.0,0.0111341]
[1765208866464,0.03319,89816.0,89815.0,0.0111341]
[1765208866769,0.06989,89816.0,89815.0,0.0111341]
[1765208866972,0.06989,89816.0,89815.0,0.02258617]
[1765208867365,0.005,89817.0,89816.0,0.06518]
[1765208867564,0.00016706,89824.0,89821.0,0.0111333]
[1765208867762,0.00016706,89824.0,89823.0,0.03166]
[1765208867961,0.00016706,89824.0,89823.0,0.06518]
[1765208868372,0.03319,89822.0,89821.0,0.0111333]
[1765208868868,0.00016706,89824.0,89823.0,0.06518]
[1765208869259,0.00416706,89824.0,89823.0,0.06618]
[1765208869569,0.07405706,89824.0,89823.0,0.001]
[1765208869778,0.00016706,89824.0,89821.0,0.0111333]
[1765208869963,0.004,89822.0,89821.0,0.0121333]
[1765208870163,0.07389,89822.0,89821.0,0.0121333]
[1765208870363,0.06989,89822.0,89821.0,0.0111333]
[1765208870564,0.00216706,89824.0,89821.0,0.0427933]
[1765208870974,0.00116706,89824.0,89821.0,0.0427933]
[1765208871164,0.001,89822.0,89821.0,0.0437933]
[1765208871364,0.001,89822.0,89821.0,0.0773133]
[1765208871966,0.002,89822.0,89821.0,0.0773133]
[1765208872378,0.001,89822.0,89821.0,0.0763133]
[1765208872566,0.00116706,89824.0,89823.0,0.03166]
[1765208872969,0.00116706,89824.0,89823.0,0.06518]
[1765208873175,0.00016706,89824.0,89823.0,0.06518]
[1765208873772,0.00116706,89824.0,89823.0,0.06518]
[1765208873968,0.0011131,89840.0,89834.0,0.0111317]
[1765208874368,0.0011131,89840.0,89824.0,0.02197]
[1765208874573,0.0011131,89840.0,89832.0,0.011132]
[1765208874879,0.0011131,89840.0,89835.0,0.0111317]
[1765208875371,0.0031131,89840.0,89834.0,0.0121317]
[1765208875572,0.0041131,89840.0,89839.0,0.03166]
[1765208875771,0.0041131,89840.0,89839.0,0.06518]
[1765208875972,0.0740031,89840.0,89837.0,0.0111314]
[1765208876272,0.0363031,89840.0,89839.0,0.03166]
[1765208876472,0.0363031,89840.0,89839.0,0.06518]
[1765208876473,0.0021131,89840.0,89839.0,0.06518]
[1765208876671,0.0051131,89840.0,89839.0,0.06618]
[1765208877075,0.0041131,89840.0,89839.0,0.06618]
[1765208878176,0.02173,89866.0,89854.0,0.0111293]
[1765208878375,0.02173,89866.0,89841.0,0.0111309]
[1765208878572,0.02173,89866.0,89852.0,0.0111295]
[1765208879469,0.06511,89855.0,89854.0,0.001]
[1765208880173,0.03319,89855.0,89854.0,0.0418493]
[1765208880377,0.03319,89855.0,89854.0,0.0729693]
[1765208880579,0.00311279,89865.0,89864.0,0.0729681]
[1765208880770,0.0111239,89898.0,89889.0,0.03072]
[1765208880966,0.21125924,89900.0,89889.0,0.06184]
[1765208881172,0.0111238,89899.0,89889.0,0.06184]
[1765208881374,0.21125924,89900.0,89889.0,0.06184]
[1765208881782,0.06247,89886.0,89885.0,0.01127144]
[1765208882081,0.03055,89885.0,89884.0,0.0111256]
[1765208882280,0.03055,89885.0,89884.0,0.01140341]
[1765208882481,0.03192,89885.0,89882.0,0.0111259]
[1765208882875,0.00111248,89890.0,89889.0,0.03072]
[1765208883182,0.03166248,89890.0,89889.0,0.06184]
[1765208884084,0.00111248,89890.0,89889.0,0.06184]
[1765208884683,0.06247,89883.0,89882.0,0.001]
[1765208885383,0.06247,89882.0,89881.0,0.01127024]
[1765208886286,0.06247,89882.0,89881.0,0.00016695]
[1765208886685,0.011127,89874.0,89854.0,0.52304]
[1765208886882,0.02013,89882.0,89854.0,0.52304]
[1765208886883,0.02013,89882.0,89872.0,0.011127]
[1765208887089,0.02013,89882.0,89868.0,0.0111275]
[1765208887383,0.02013,89882.0,89865.0,0.0111279]
[1765208887384,0.21125924,89880.0,89865.0,0.0111279]
[1765208887584,0.02013,89882.0,89861.0,2.02304]
[1765208887792,0.0001668,89881.0,89864.0,0.00016695]
[1765208888181,0.001,89874.0,89873.0,0.06184]
[1765208888484,0.001,89874.0,89864.0,0.00016695]
[1765208888689,0.0001668,89881.0,89864.0,0.00016695]
[1765208888690,0.06247,89865.0,89864.0,0.00016695]
[1765208888988,0.0001668,89881.0,89864.0,0.00016695]
[1765208889377,0.001,89874.0,89873.0,0.06184]
[1765208889992,0.06347,89874.0,89866.0,0.0111278]
[1765208890188,0.06347,89874.0,89873.0,0.03072]
[1765208890394,0.06347,89874.0,89864.0,0.00016695]
[1765208890693,0.06247,89865.0,89864.0,0.00016695]
[1765208890995,0.21225924,89874.0,89873.0,0.03072]
[1765208890996,0.001,89874.0,89873.0,0.03072]
[1765208891179,0.001,89874.0,89873.0,0.06184]
[1765208891586,0.03055,89874.0,89873.0,0.06184]
[1765208891996,0.03155,89874.0,89873.0,0.06184]
[1765208892391,0.06447,89874.0,89873.0,0.06284]
[1765208892991,0.06447,89874.0,89873.0,0.001]
[1765208893586,0.06447,89874.0,89864.0,0.00016695]
[1765208893587,0.06236,89865.0,89864.0,0.00016695]
[1765208894097,0.002,89874.0,89868.0,0.0111276]
[1765208894299,0.002,89874.0,89864.0,0.06170695]
[1765208894300,0.002,89874.0,89873.0,0.06154]
[1765208894499,0.02989,89866.0,89865.0,0.011128]
[1765208894792,0.06236,89866.0,89865.0,0.039858]
[1765208894996,0.06236,89866.0,89864.0,0.00316695]
[1765208894997,0.21125924,89880.0,89871.0,0.0111272]
[1765208895195,0.21125924,89880.0,89864.0,0.00116695]
[1765208895391,0.001,89874.0,89867.0,0.0111276]
[1765208895592,0.06436,89874.0,89873.0,0.001]
[1765208895804,0.06336,89874.0,89873.0,0.001]
[1765208896699,0.001,89874.0,89873.0,0.06254]
[1765208897495,0.0001668,89881.0,89880.0,0.0726661]
[1765208898699,0.0021668,89881.0,89880.0,0.0726661]
[1765208899701,0.02989,89877.0,89876.0,0.57182]
[1765208899994,0.06236,89877.0,89871.0,0.0111272]
[1765208900195,0.06236,89872.0,89854.0,0.01127464]
[1765208900397,0.06236,89865.0,89861.0,0.0111284]
[1765208900598,0.21542604,89881.0,89867.0,0.0111277]
[1765208900896,0.06336,89877.0,89876.0,0.001]
[1765208901587,0.06236,89877.0,89867.0,0.001]
[1765208901791,0.06236,89877.0,89873.0,0.011127]
[1765208901986,0.0001668,89881.0,89880.0,0.02873]
[1765208902898,0.0001668,89881.0,89880.0,0.0726661]
[1765208903398,0.00111248,89890.0,89889.0,0.072665]
[1765208903988,0.21125924,89920.0,89904.0,0.0111231]
[1765208904193,0.0111214,89919.0,89895.0,0.01927]
[1765208904405,0.06236,89904.0,89903.0,0.0111233]
[1765208904596,0.0188,89921.0,89895.0,0.01927]
[1765208904597,0.0188,89921.0,89909.0,0.0111225]
[1765208904891,0.0188,89921.0,89914.0,0.06154]
[1765208905091,0.0188,89934.0,89914.0,0.06154]
[1765208905306,0.01311217,89915.0,89914.0,0.06154]
[1765208905605,0.01311217,89915.0,89914.0,0.07310928]
[1765208906494,0.01311217,89915.0,89914.0,0.01156928]
[1765208906495,0.07547217,89915.0,89914.0,0.01156928]
[1765208906690,0.02989,89913.0,89908.0,0.0111226]
[1765208906897,0.02989,89909.0,89908.0,0.0226987]
[1765208907396,0.06236,89909.0,89908.0,0.0115761]
[1765208907591,0.02989,89905.0,89904.0,0.0111231]
[1765208907797,0.02989,89905.0,89904.0,0.02238883]
[1765208908002,0.02989,89905.0,89900.0,0.0111236]
[1765208908198,0.06236,89896.0,89895.0,0.00016683]
[1765208908602,0.06236,89896.0,89895.0,0.01125747]
[1765208908904,0.06236,89896.0,89895.0,0.00016683]
[1765208910098,0.06236,89896.0,89895.0,0.00116683]
[1765208910298,0.06336,89896.0,89895.0,0.00116683]
[1765208910503,0.03247,89875.0,89866.0,0.0111278]
[1765208910693,0.02989,89870.0,89869.0,0.0111274]
[1765208910896,0.02989,89870.0,89869.0,0.02873]
[1765208911092,0.02989,89870.0,89869.0,0.07298878]
[1765208911607,0.06236,89870.0,89869.0,0.01144878]
[1765208911807,0.06236,89862.0,89861.0,0.00016683]
[1765208912000,0.06236,89862.0,89861.0,0.01144791]
[1765208912402,0.001,89875.0,89862.0,0.0111283]
[1765208913101,0.06236,89862.0,89861.0,0.01144791]
[1765208913903,0.06336,89862.0,89861.0,0.01144791]
[1765208914310,0.06336,89862.0,89861.0,0.04017791]
[1765208914515,0.001,89862.0,89861.0,0.07298791]
[1765208914705,0.001,89862.0,89861.0,0.07598791]
[1765208915009,0.03089,89862.0,89861.0,0.07598791]
[1765208915309,0.06236,89862.0,89861.0,0.01444791]
[1765208915504,0.06336,89862.0,89861.0,0.00416683]
[1765208915904,0.06336,89862.0,89861.0,0.015613]
[1765208916100,0.06236,89862.0,89861.0,0.014613]
[1765208916299,0.06336,89862.0,89861.0,0.015613]
[1765208916494,0.06336,89862.0,89861.0,0.0267415]
[1765208916702,0.001,89862.0,89861.0,0.0852815]
[1765208916900,0.0111265,89877.0,89861.0,0.0872815]
[1765208917211,0.0111269,89875.0,89861.0,0.0882815]
[1765208917412,0.00016645,89878.0,89861.0,0.076153]
[1765208917413,0.0111271,89872.0,89861.0,0.076153]
[1765208917800,0.06236,89862.0,89861.0,0.0257415]
[1765208918012,0.06236,89862.0,89861.0,0.0267415]
[1765208918712,0.06336,89862.0,89861.0,0.0554715]
[1765208919505,0.06336,89862.0,89861.0,0.0524715]
[1765208919710,0.06336,89862.0,89861.0,0.0544715]
[1765208919908,0.001,89862.0,89861.0,0.0872815]
[1765208921006,0.00016645,89878.0,89877.0,0.06154]
[1765208921310,0.06252645,89878.0,89865.0,0.46372]
[1765208921509,0.06252645,89878.0,89861.0,0.537533]
[1765208922003,0.06236,89866.0,89865.0,0.011128]
[1765208922712,0.00216645,89878.0,89870.0,0.0111273]
[1765208922912,0.06099,89871.0,89870.0,0.0708373]
[1765208923207,0.00116645,89878.0,89875.0,0.0111267]
[1765208923712,0.02959,89876.0,89875.0,0.0708367]
[1765208924007,0.00111248,89890.0,89889.0,0.02821]
[1765208924198,0.06210248,89890.0,89889.0,0.02821]
[1765208924406,0.06099,89884.0,89883.0,0.0111257]
[1765208924808,0.06099,89884.0,89883.0,0.0393357]
[1765208925007,0.00111248,89890.0,89889.0,0.070835]
[1765208926304,0.00111248,89890.0,89884.0,0.0111256]
[1765208926514,0.06810248,89890.0,89889.0,0.001]
[1765208927504,0.06610248,89890.0,89889.0,0.001]
[1765208927900,0.06410248,89890.0,89882.0,0.0111258]
[1765208928111,0.06410248,89890.0,89875.0,0.00016683]
[1765208928304,0.02959,89885.0,89884.0,0.001]
[1765208928614,0.00511248,89890.0,89885.0,0.0111255]
[1765208928818,0.03470248,89890.0,89889.0,0.001]
[1765208929115,0.03670248,89890.0,89889.0,0.001]
[1765208929317,0.06810248,89890.0,89889.0,0.001]
[1765208929528,0.06410248,89890.0,89889.0,0.001]
[1765208929718,0.06710248,89890.0,89885.0,0.0121255]
[1765208930017,0.06099,89886.0,89885.0,0.001]
[1765208930514,0.0721154,89886.0,89885.0,0.001]